[Event "97th Argentine Championship 2022"]
[Site "Barichole"]
[Date "2022.12.02"]
[Round "2.5"]
[White "Sorin, Ariel"]
[Black "Gaitan, Juan Manuel"]
[Result "1/2-1/2"]
[ECO "D48"]
[WhiteElo "2363"]
[BlackElo "2347"]
[Annotator "TA"]
[PlyCount "87"]
[EventDate "2022.12.01"]
[EventCountry "ARG"]
[SourceTitle "playchess.com"]
[Source "ChessBase"]
[SourceQuality "1"]
[TimeControl "40/5400+30:1800+30"]

{[%evp 27,87,-38,-19,-29,-28,-25,-33,-19,-19,-26,-20,-12,-5,-18,0,0,0,0,0,0,0,0,0,-7,0,0,26,31,35,33,23,9,9,10,27,16,36,6,10,0,0,0,0,0,39,1,11,0,35,35,57,55,62,0,3,0,0,0,0,0,0,0]} 1. d4 {[%emt 0:00:03]} Nf6 {[%emt 0:00:21]} 2. c4 {[%emt 0:00:05]} e6 {[%emt 0:00:08]} 3. Nf3 {[%emt 0:00:12]} d5 {[%emt 0:01:18]} 4. Nc3 {[%emt 0:00:07]} dxc4 {[%emt 0:00:28]} 5. e3 {[%emt 0:03:21]} a6 {[%emt 0:00:35]} 6. Bxc4 {[%emt 0:09:47]} b5 {[%emt 0:00:10]} 7. Bd3 {[%emt 0:00:58]} Bb7 {[%emt 0:04:45]} 8. Qe2 {[%emt 0:09:13]} Nbd7 {[%emt 0:02:35]} 9. O-O {[%emt 0:06:22]} c5 {[%emt 0:02:38]} 10. Rd1 {[%emt 0:01:20]} Qb8 {[%emt 0:03:19]} 11. a3 {[%emt 0:12:36]} Bd6 {[%emt 0:07:37]} 12. h3 {[%emt 0:01:00]} O-O {[%emt 0:01:25]} 13. e4 {[%emt 0:04:22]} cxd4 {[%emt 0:08:21]} 14. Nxd4 {[%emt 0:00:13]} Ne5 {[%emt 0:13:54]} 15. Bc2 {[%emt 0:02:16] D48: Semi-Slav: Meran System: 7...b5 8 Bd3 a6.} Rd8 {[%emt 0:02:39]} 16. Bg5 {[%emt 0:07:47]} Ng6 {[%emt 0:07:19] [#]} 17. Nf3 $146 {[%emt 0:05:49] Black is slightly better.} ({Predecessor:} 17. Nb3 Bh2+ 18. Kh1 Be5 19. Na5 Qc7 20. Nxb7 Qxb7 21. Qe3 Qc7 22. g3 h6 23. Bxf6 Bxf6 {0-1 (71) Gromovs,S (2297)-Mirzoev,A (2468) Amantea 2011}) 17... h6 {[%emt 0:01:09]} 18. Be3 {[%emt 0:01:47]} Nd7 {[%emt 0:17:32]} 19. g3 {[%emt 0:05:35]} Nge5 {[%emt 0:01:30]} 20. Nd2 {[%emt 0:00:52] Prevents Nc4.} Bc5 {[%emt 0:22:47]} 21. f4 {[%emt 0:03:11] [#] Strongly threatening Bxc5.} Qa7 {[%emt 0:00:00]} 22. Kf2 {[%emt 0:00:54]} Nc6 {[%emt 0:00:00]} 23. Nb3 {[%emt 0:03:03] Inhibits Nd4.} Bb6 {[%emt 0:00:00]} 24. Rd6 {[%emt 0:11:07]} Nc5 {[%emt 0:00:00]} (24... Bxe3+ {simplifies} 25. Qxe3 Nb6 26. Rxd8+ Rxd8 27. Rd1 Rxd1 28. Bxd1 Ba8) 25. Rad1 {[%emt 0:04:55]} Rxd6 {[%emt 0:00:00]} 26. Rxd6 {[%emt 0:00:06]} Rd8 {[%emt 0:00:00]} 27. Rxd8+ {[%emt 0:00:43]} Nxd8 {[%emt 0:00:00]} 28. Nxc5 {[%emt 0:01:26]} Bxc5 {[%emt 0:00:00]} 29. Bxc5 {[%emt 0:00:40]} Qxc5+ {[%emt 0:00:00]} 30. Qe3 {[%emt 0:00:07]} Qc7 {[%emt 0:00:00]} 31. e5 {[%emt 0:01:13]} Nc6 {[%emt 0:00:00]} 32. Qc5 {[%emt 0:00:28]} Qd8 {[%emt 0:00:00]} 33. Ne4 {[%emt 0:01:01]} Nd4 {[%emt 0:00:00]} 34. Bd3 {[%emt 0:02:29]} Nb3 {[%emt 0:04:06][%csl LRc5,LRd3]} 35. Qe3 {[%emt 0:00:05]} Qd5 {[%emt 0:00:33]} 36. h4 {[%emt 0:01:49]} Nd4 {[%emt 0:01:10]} 37. Qc1 {[%emt 0:00:31]} Nb3 {[%emt 0:01:17] Prevents Qc5.} (37... Nf5 $5 {[%cal Rd5d3]} 38. Qc3 h5 $11) 38. Qc3 {[%emt 0:00:21]} a5 {[%emt 0:00:18]} 39. Bc2 $1 {[%emt 0:00:31]} Nd4 {[%emt 0:00:09] [#] White must now prevent ...Nxc2.} 40. Bd3 {[%emt 0:00:00]} (40. Bb1 $1 $14) 40... Nb3 {[%emt 0:00:00] The position is equal.} 41. Ke3 {[%emt 0:02:19]} a4 {[%emt 0:01:13]} 42. Bc2 {[%emt 0:06:28] aiming for Qd3.} Na1 {[%emt 0:00:08]} 43. Bd3 {[%emt 0:00:25] Threatens to win with Qc7.} Nb3 {[%emt 0:32:36]} 44. Bc2 {[%emt 0:24:53] Weighted Error Value: White=0.06 (flawless) /Black=0.08 (flawless)} 1/2-1/2

[Event "97th Argentine Championship 2022"]
[Site "Barichole"]
[Date "2022.12.02"]
[Round "2.6"]
[White "Paveto, Kevin"]
[Black "Fiorito, Joaquin"]
[Result "1/2-1/2"]
[ECO "C50"]
[WhiteElo "2431"]
[BlackElo "2344"]
[Annotator "TA"]
[PlyCount "73"]
[EventDate "2022.12.01"]
[EventCountry "ARG"]
[SourceTitle "playchess.com"]
[Source "ChessBase"]
[SourceQuality "1"]
[TimeControl "40/5400+30:1800+30"]

{[%evp 9,73,14,25,0,1,0,5,0,20,0,16,0,13,10,13,13,13,14,25,16,49,14,8,0,0,5,27,9,5,6,3,0,0,0,0,0,23,0,21,0,0,0,37,-50,-38,-47,0,-1,-2,-31,-24,-34,-15,-14,-17,-17,-25,-13,-16,-16,-4,-2,-8,-8,-8,-19]} 1. e4 {[%emt 0:00:31]} e5 {[%emt 0:00:10]} 2. Nf3 {[%emt 0:00:09]} Nc6 {[%emt 0:00:05]} 3. Bc4 {[%emt 0:00:09]} Bc5 {[%emt 0:00:10]} 4. d3 {[%emt 0:00:11]} Nf6 {[%emt 0:00:08]} 5. Nc3 {[%emt 0:00:49]} d6 {[%emt 0:00:35]} 6. a4 {[%emt 0:01:18] C50: Hungarian Defence and Giuoco Pianissimo.} a5 {[%emt 0:04:32]} 7. h3 {[%emt 0:02:48]} O-O {[%emt 0:10:22] [#]} 8. Be3 $146 {[%emt 0:04:15]} ({Predecessor:} 8. Bg5 h6 9. Bh4 g5 10. Bg3 Kg7 11. h4 g4 12. Nd2 Nh5 13. Nb3 Ba7 14. Nd5 {0-1 (45) Reprintsev,A (2353)-Aradhya,G (2198) Chess.com INT 2021}) 8... Nd4 {[%emt 0:09:46]} 9. O-O {[%emt 0:02:08]} (9. Bxd4 {simplifies} Bxd4 10. Nxd4 exd4 11. Ne2) 9... Be6 {[%emt 0:02:04]} 10. Bxe6 {[%emt 0:06:02]} Nxe6 {[%emt 0:03:36]} 11. Bxc5 {[%emt 0:00:18]} Nxc5 {[%emt 0:00:05]} 12. Re1 {[%emt 0:00:17]} Re8 {[%emt 0:00:37]} 13. d4 {[%emt 0:03:06]} Ncd7 {[%emt 0:07:00]} 14. Qd2 {[%emt 0:05:41]} exd4 {[%emt 0:13:50]} 15. Qxd4 {[%emt 0:05:24]} Ne5 {[%emt 0:00:27]} 16. Nd2 {[%emt 0:02:03]} Nc6 {[%emt 0:02:00]} 17. Qc4 {[%emt 0:02:12]} Ne5 {[%emt 0:04:16]} 18. Qf1 {[%emt 0:05:16]} c6 {[%emt 0:01:53]} 19. f4 {[%emt 0:07:38]} Ng6 {[%emt 0:00:20]} 20. Qf2 {[%emt 0:00:27] Against Qb6} Qc7 {[%emt 0:01:53]} 21. g3 {[%emt 0:04:01]} Rab8 {[%emt 0:03:55]} 22. Nb3 {[%emt 0:03:57]} h6 {[%emt 0:16:30]} 23. Re2 {[%emt 0:10:39]} Qd7 {[%emt 0:02:03]} 24. Qg2 {[%emt 0:07:49]} (24. Kg2 $5 {[%cal Rb3a5]}) 24... Qc7 {[%emt 0:02:34]} 25. Qf2 {[%emt 0:05:27]} Qd7 {[%emt 0:03:41]} 26. f5 {[%emt 0:06:09]} (26. Kg2 $14) 26... Ne5 $15 {[%emt 0:00:04][%cal Bg6e5,Be5c4,Bc4b2][%mdl 32]} 27. Nxa5 {[%emt 0:00:11]} Qc7 {[%emt 0:05:44]} (27... Ra8 $15 28. Nb3 b5) 28. Nb3 {[%emt 0:04:18]} Nc4 {[%emt 0:00:05]} 29. Rae1 {[%emt 0:04:27]} (29. Rb1 $5) 29... Nxb2 {[%emt 0:02:07]} 30. Qd4 {[%emt 0:01:05]} c5 {[%emt 0:00:21]} 31. Nb5 {[%emt 0:01:42][%csl LRb2,LRc7,LRd6]} cxd4 {[%emt 0:00:04]} 32. Nxc7 {[%emt 0:00:06]} Re5 {[%emt 0:00:09]} 33. Nxd4 {[%emt 0:00:49]} Nxa4 {[%emt 0:00:10] Black wants to play ...Nc3. The position is equal.} 34. Ncb5 {[%emt 0:01:50] Inhibits Nc3.} d5 {[%emt 0:00:47]} 35. exd5 {[%emt 0:00:52]} Rxd5 {[%emt 0:00:03]} 36. Re5 {[%emt 0:00:56]} Rdd8 {[%emt 0:00:34]} 37. Nf3 {[%emt 0:02:50] Weighted Error Value: White=0.12 (very precise) /Black=0.09 (flawless)} 1/2-1/2

[Event "97th Argentine Championship 2022"]
[Site "Barichole"]
[Date "2022.12.03"]
[Round "3.1"]
[White "Peralta, Fernando"]
[Black "Paveto, Kevin"]
[Result "1-0"]
[ECO "D88"]
[WhiteElo "2587"]
[BlackElo "2431"]
[Annotator "TA"]
[PlyCount "53"]
[EventDate "2022.12.01"]
[EventType "tourn"]
[EventCountry "ARG"]
[SourceTitle "playchess.com"]
[Source "ChessBase"]
[SourceQuality "1"]
[TimeControl "40/5400+30:1800+30"]

{[%evp 27,53,9,27,4,10,0,32,38,29,30,35,19,37,36,60,68,200,178,199,189,195,182,142,158,661,639,610,569]} 1. d4 {[%emt 0:00:41]} Nf6 {[%emt 1:31:00]} 2. c4 {[%emt 0:00:03]} g6 {[%emt 0:00:00]} 3. Nc3 {[%emt 0:00:06]} d5 {[%emt 0:00:00]} 4. cxd5 {[%emt 0:00:04]} Nxd5 {[%emt 0:00:00]} 5. e4 {[%emt 0:00:02]} Nxc3 {[%emt 0:00:00]} 6. bxc3 {[%emt 0:00:02]} Bg7 {[%emt 0:00:00]} 7. Bc4 {[%emt 0:00:04]} c5 {[%emt 0:00:00]} 8. Ne2 {[%emt 0:00:04]} O-O {[%emt 0:00:00]} 9. O-O {[%emt 0:00:06]} Nc6 {[%emt 0:00:00]} 10. Be3 {[%emt 0:00:05]} b6 {[%emt 0:00:00]} 11. Rc1 {[%emt 0:03:00]} Bb7 {[%emt 0:00:00]} 12. Qd2 {[%emt 0:00:56]} cxd4 {[%emt 0:00:00]} 13. cxd4 {[%emt 0:00:05]} Na5 {[%emt 0:00:00]} 14. Bd3 {[%emt 0:00:24]} Qd7 {[%emt 0:00:00]} 15. h4 $5 {[%emt 0:25:58][%cal Bh2h4,Bh4h5][%mdl 4] A promising side line. D88: Exchange Grünfeld: Classical Line: 10 Be3 cxd4 11 cxd4.} (15. Qb4 {simplifies} Rac8 16. d5 Rxc1 17. Rxc1 Rc8 18. Rxc8+ Bxc8 19. Nd4) 15... Rfc8 {[%emt 0:00:00]} 16. h5 {[%emt 0:00:20]} e6 {[%emt 0:00:00]} 17. Bh6 {[%emt 0:06:49] White is slightly better.} Bh8 {[%emt 0:00:00]} 18. e5 {[%emt 0:06:02]} Nc6 {[%emt 0:00:00]} 19. Bb1 {[%emt 0:11:43] [#]} Ba6 $146 {[%emt 0:00:00]} ({Predecessor:} 19... Ne7 20. Ng3 Rxc1 21. Rxc1 Rc8 22. Rxc8+ Bxc8 23. Qg5 Bb7 24. Bd3 a6 25. a4 Qd8 {½-½ (38) Panman,H (2320)-Kruijer,R (2342) ICCF email 2013}) 20. Rfd1 {[%emt 0:01:42]} Ne7 {[%emt 0:00:00]} 21. Nc3 $40 {[%emt 0:07:00][%cal Be2c3,Bc3e4,Be4d6][%mdl 160] White has some attack.} Nd5 {[%emt 0:00:00]} ({Black should play} 21... Rc7 $14) 22. Ne4 $1 $18 {[%emt 0:01:40]} Rxc1 {[%emt 0:00:00]} 23. Rxc1 {[%emt 0:01:35]} Rc8 {[%emt 0:00:00]} 24. Nd6 {[%emt 0:01:08]} Rxc1+ {[%emt 0:00:00]} 25. Qxc1 {[%emt 0:00:06] The board is on fire.} Qa4 $2 {[%emt 0:00:00] [#]} (25... Bb7 $16 26. Be4 Bc6) 26. Bd3 $1 {[%emt 0:06:08][%mdl 512] Threatens to win with Bxa6.} Bg7 {[%emt 0:00:00] [#] ...Bxh6 is the strong threat.} 27. Bxa6 $1 {[%emt 0:07:03] Weighted Error Value: White=0.03 (flawless) /Black=0.51} 1-0

[Event "97th Argentine Championship 2022"]
[Site "Barichole"]
[Date "2022.12.03"]
[Round "3.2"]
[White "Fiorito, Joaquin"]
[Black "Flores, Diego"]
[Result "1-0"]
[ECO "E20"]
[WhiteElo "2344"]
[BlackElo "2547"]
[Annotator "TA"]
[PlyCount "75"]
[EventDate "2022.12.01"]
[EventType "tourn"]
[EventCountry "ARG"]
[SourceTitle "playchess.com"]
[Source "ChessBase"]
[SourceQuality "1"]
[TimeControl "40/5400+30:1800+30"]

{[%evp 9,75,-22,19,18,31,10,12,0,6,-26,-23,-27,0,0,0,0,14,-64,-58,-59,29,22,118,125,139,147,140,143,141,152,147,51,53,42,38,43,115,131,117,118,147,140,324,175,196,188,213,165,188,147,166,183,283,268,377,357,374,364,459,458,29980,29981,29981,29982,29996,29997,29997,29998]} 1. d4 {[%emt 0:00:18]} Nf6 {[%emt 0:03:56]} 2. c4 {[%emt 0:00:08]} e6 {[%emt 0:02:10]} 3. Nc3 {[%emt 0:00:48]} Bb4 {[%emt 0:01:48]} 4. f3 {[%emt 0:03:06]} c5 {[%emt 0:13:25]} 5. a3 {[%emt 0:00:43]} cxd4 {[%emt 0:04:04]} 6. axb4 {[%emt 0:08:33] E20: Nimzo-Indian: 4 g3 and 4 f3.} dxc3 {[%emt 0:00:13]} 7. bxc3 {[%emt 0:00:10]} d5 {[%emt 0:00:49] [#]} 8. Be3 $146 {[%emt 0:09:22] The position is equal.} ({Predecessor:} 8. c5 e5 9. Bg5 O-O 10. e4 dxe4 11. Qxd8 Rxd8 12. fxe4 Be6 13. Bb5 Nc6 14. Ne2 {½-½ (38) Petkov,V (2522)-Stojanovski,D (2435) Vrnjacka Banja 2012}) 8... O-O {[%emt 0:06:50]} 9. Rxa7 {[%emt 0:06:32]} Rxa7 {[%emt 0:00:15]} 10. Bxa7 {[%emt 0:00:04]} Nc6 {[%emt 0:00:16]} 11. Bc5 {[%emt 0:04:02]} Re8 {[%emt 0:00:24]} 12. cxd5 {[%emt 0:01:32]} exd5 {[%emt 0:01:12]} (12... Nxd5 $5 {[%cal Rd8f6]} 13. e4 Nxc3 $11) 13. e3 {[%emt 0:03:53]} ({White should try} 13. Kf2 $11) 13... d4 $1 $15 {[%emt 0:20:34]} 14. Bxd4 {[%emt 0:05:27]} Nd5 {[%emt 0:09:05]} (14... Nxd4 $15 15. Qxd4 Qxd4 16. cxd4 Rxe3+ 17. Kd2 Rb3) 15. Ne2 $11 {[%emt 0:01:52] Strongly threatening e4.} Qh4+ {[%emt 0:08:25]} (15... Nxe3 16. Bxe3 Qxd1+ 17. Kxd1 $16) (15... Nxd4 $11 16. Qxd4 Nxe3 17. Qxd8 Rxd8) 16. g3 $16 {[%emt 0:01:10]} Qh5 {[%emt 0:00:44] [#]} 17. Kf2 {[%emt 0:06:06]} Nxd4 {[%emt 0:04:11]} 18. Qxd4 {[%emt 0:01:04] And now e4 would win.} Nxe3 {[%emt 0:05:33]} 19. Nf4 {[%emt 0:00:29]} Qh6 {[%emt 0:00:11]} 20. Bd3 {[%emt 0:45:11]} ({White should play} 20. Bb5 $16 Nf5 21. Qc5) 20... g5 $1 $14 {[%emt 0:00:53]} 21. Ng2 $36 {[%emt 0:00:00][%mdl 2048] White is more active.} Nxg2 {[%emt 0:00:33]} 22. Kxg2 {[%emt 0:00:00]} Bh3+ {[%emt 0:06:19]} (22... g4 $1 $14 23. Ra1 (23. fxg4 $2 Qc6+ 24. Kh3 Qxh1 $19) 23... gxf3+ 24. Kg1 Qc6) 23. Kf2 $16 {[%emt 0:00:00]} g4 {[%emt 0:01:14] ( -> ...Qd2+)} 24. Be4 {[%emt 0:00:00] aiming for Re1. Active counter play!} (24. fxg4 $2 Qd2+) 24... gxf3 {[%emt 0:01:38]} 25. Bxf3 {[%emt 0:00:00]} (25. Bxb7 $2 {perishes.} Qe6 26. g4 Qe2+ 27. Kg3 Qg2+ 28. Kh4 Qxh1 $19) 25... Qa6 {[%emt 0:01:08] Black cannot hold the game after this.} (25... b5 $16 26. Re1 Rxe1 27. Kxe1 Qc1+ 28. Bd1 Be6) 26. Rd1 {[%emt 0:00:00]} (26. g4 $142) 26... Qa2+ $18 {[%emt 0:01:27]} 27. Kg1 {[%emt 0:00:00]} h6 {[%emt 0:00:07]} 28. Qd2 {[%emt 0:00:00] Inhibits b5.} ({Stronger than} 28. Bxb7 Re2 $11) 28... Qa7+ {[%emt 0:01:20] [#]} 29. Qf2 $1 {[%emt 0:00:00]} Qa6 {[%emt 0:02:33]} 30. g4 {[%emt 0:00:00]} Qf6 {[%emt 0:00:18] Against Qh4} (30... Qe6 $142) 31. Qg3 {[%emt 0:00:00]} (31. Bxb7 Qxc3 32. Bf3 (32. Bd5 Qg7 $16) 32... Re6 33. Rd8+ Kh7 $14) 31... Re3 {[%emt 0:00:10]} (31... Qxc3 $142 32. Qxh3 Re1+ 33. Rxe1 Qxe1+ 34. Qf1 Qxb4) 32. Kf2 {[%emt 0:00:00]} Rxc3 {[%emt 0:03:37] Threatens to win with ...Qb6+.} 33. Qxh3 {[%emt 0:00:00]} Qf4 {[%emt 0:00:45]} 34. Qg3 {[%emt 0:00:00]} ({Weaker is} 34. Kg2 Rc2+ 35. Kg1 Qe3+ 36. Kh1 Rf2 $18) 34... Qxb4 {[%emt 0:00:45]} (34... Rc2+ $18 35. Kf1 Qxg3 36. hxg3 Rb2) 35. Rd8+ {[%emt 0:00:00] White mates.} Kh7 {[%emt 0:00:25] [#]} 36. Be4+ $1 {[%emt 0:00:00][%mdl 512]} Kg7 {[%emt 0:00:29]} (36... Qxe4 37. Qxc3) 37. Qe5+ {[%emt 0:00:00]} f6 {[%emt 0:00:07]} 38. Rd7+ {[%emt 0:00:00] Weighted Error Value: White=0.17 (very precise) /Black=0.48} 1-0

[Event "97th Argentine Championship 2022"]
[Site "Barichole"]
[Date "2022.12.03"]
[Round "3.3"]
[White "Pichot, Alan"]
[Black "Mareco, Sandro"]
[Result "1/2-1/2"]
[ECO "B12"]
[WhiteElo "2637"]
[BlackElo "2619"]
[Annotator "TA"]
[PlyCount "60"]
[EventDate "2022.12.01"]
[EventType "tourn"]
[EventCountry "ARG"]
[SourceTitle "playchess.com"]
[Source "ChessBase"]
[SourceQuality "1"]
[TimeControl "40/5400+30:1800+30"]

{[%evp 9,60,0,0,12,16,17,23,11,17,18,12,3,16,0,0,0,0,0,0,0,-5,-5,0,0,23,-21,-23,-27,-16,-193,-18,-16,-17,-17,0,-12,0,0,0,0,0,0,0,0,0,0,0,-42,-39,-41,-32,-39,-37]} 1. e4 {[%emt 0:01:04]} c6 {[%emt 0:00:27]} 2. d4 {[%emt 0:00:26]} d5 {[%emt 0:00:04]} 3. e5 {[%emt 0:00:09]} c5 {[%emt 0:00:03]} 4. dxc5 {[%emt 0:01:49]} e6 {[%emt 0:00:05]} 5. a3 {[%emt 0:00:06]} Bxc5 {[%emt 0:00:05]} 6. Nf3 {[%emt 0:00:09] B12: Caro-Kann: Advance Variation.} f6 {[%emt 0:00:21]} 7. b4 {[%emt 0:02:14]} Be7 {[%emt 0:00:04]} 8. Bb2 {[%emt 0:05:31] White has an edge.} a5 {[%emt 0:00:05]} 9. b5 {[%emt 0:01:21]} Nd7 {[%emt 0:00:05]} 10. Bd3 {[%emt 0:02:19]} Nh6 {[%emt 0:00:11]} 11. c4 {[%emt 0:08:18] [#]} (11. Qe2 $5 {[%cal Re5f6]}) 11... Nxe5 $146 {[%emt 0:27:47]} ({Predecessor:} 11... Nc5 12. O-O Nf7 13. Qc2 Nxd3 14. Qxd3 dxc4 15. Qxc4 O-O 16. exf6 gxf6 17. Nc3 Nd6 {½-½ (34) Besou,H (2061)-Herrmann,A (1686) Bayreuth 2022}) 12. Nxe5 {[%emt 0:01:45]} fxe5 {[%emt 0:00:36]} 13. Bxe5 {[%emt 0:01:42]} dxc4 {[%emt 0:17:15]} 14. Bxc4 {[%emt 0:05:25]} ({Not} 14. Qh5+ $2 Nf7 15. Bxg7 (15. Bxc4 $2 g6 $19) 15... Qxd3 $1 $19) 14... Qxd1+ {[%emt 0:00:07]} 15. Kxd1 {[%emt 0:00:06]} Ng4 {[%emt 0:00:08]} 16. Bg3 {[%emt 0:07:32]} ({Reject} 16. Bxg7 Nxf2+ 17. Ke2 Rg8 18. Kxf2 Bc5+ 19. Kf3 Rxg7 $17) 16... Rf8 {[%emt 0:04:01]} 17. Ra2 {[%emt 0:09:58]} Bd7 {[%emt 0:02:12]} 18. h3 {[%emt 0:07:08]} Rc8 {[%emt 0:04:57]} 19. Bb3 $2 {[%emt 0:13:07] [#]} (19. Bd3 $1 $11 {and White is okay.} Nf6 20. a4) 19... Nf6 $2 {[%emt 0:00:41]} (19... Bg5 $1 $19 {( -> ...Rc1+)} 20. f4 Ne3+ 21. Kd2 Nf5) 20. Re1 $11 {[%emt 0:07:03]} Bxb5 {[%emt 0:01:42]} 21. Bxe6 {[%emt 0:00:27]} Rd8+ {[%emt 0:40:04]} (21... Ba4+ {seems wilder.} 22. Kd2 Rd8+ 23. Kc1 Nh5) 22. Kc1 $1 {[%emt 0:02:56]} Bd7 {[%emt 0:00:00]} 23. Bb3 {[%emt 0:05:24] Rae2 is the strong threat.} (23. Rd2 {simplifies} Bxe6 24. Rxe6 Kf7 25. Rb6) 23... Rc8+ {[%emt 0:00:00]} 24. Kd1 {[%emt 0:00:20]} a4 {[%emt 0:00:00]} 25. Bd6 $1 $36 {[%emt 0:07:23][%mdl 2048] White has the initiative.} axb3 {[%emt 0:00:00]} 26. Rxe7+ {[%emt 0:00:05]} Kd8 {[%emt 0:00:00]} 27. Rd2 {[%emt 0:00:34][%cal Oe7d7] And now Rxd7+! would win.} Re8 {[%emt 0:00:00]} 28. Rxg7 {[%emt 0:05:37]} b2 {[%emt 0:00:00][%csl Gb2][%cal Rc8c1] Black is slightly better.} 29. Rxd7+ $1 {[%emt 0:02:31]} Kxd7 {[%emt 0:00:00][%csl Gb2][%cal Rc8c1]} 30. Bb4+ {[%emt 0:00:51]} Ke6 {[%emt 0:00:00] Weighted Error Value: White=0.16 (very precise) /Black=0.15 (very precise)} 1/2-1/2

[Event "97th Argentine Championship 2022"]
[Site "Barichole"]
[Date "2022.12.03"]
[Round "3.4"]
[White "Valerga, Diego"]
[Black "Acosta, Pablo Ismael"]
[Result "0-1"]
[ECO "A07"]
[WhiteElo "2438"]
[BlackElo "2461"]
[Annotator "TA"]
[PlyCount "68"]
[EventDate "2022.12.01"]
[EventType "tourn"]
[EventCountry "ARG"]
[SourceTitle "playchess.com"]
[Source "ChessBase"]
[SourceQuality "1"]
[TimeControl "40/5400+30:1800+30"]

{[%evp 13,68,0,0,-5,2,-27,-14,-26,-15,-31,-22,-22,-21,-27,-40,-24,-17,-33,-25,-15,-29,-41,-23,-33,-27,-35,-17,-34,-36,-40,-47,-61,-22,-79,-45,-86,0,0,0,-5,0,0,0,0,0,-229,0,0,0,0,0,0,20,-29993,-955,-29994,-29995]} 1. g3 {[%emt 0:00:22]} d5 {[%emt 0:05:30]} 2. Bg2 {[%emt 0:00:09]} Nf6 {[%emt 0:00:26]} 3. Nf3 {[%emt 0:01:13]} c6 {[%emt 0:03:19]} 4. d3 {[%emt 0:01:04]} Bg4 {[%emt 0:00:51][%cal Bc8g4,Bg4h5,Bh5g6][%mdl 32]} 5. Nbd2 {[%emt 0:04:01]} Nbd7 {[%emt 0:00:42]} 6. h3 {[%emt 0:00:18]} Bh5 {[%emt 0:01:25]} 7. g4 {[%emt 1:26:53]} Bg6 {[%emt 0:00:23]} 8. Nh4 {[%emt 0:00:00] A07: Réti Opening: New York and Capablanca Systems.} e5 {[%emt 0:01:16]} 9. e3 {[%emt 0:00:00]} Bd6 {[%emt 0:07:58]} 10. Qe2 {[%emt 0:00:00] The position is equal.} O-O {[%emt 0:00:30]} 11. O-O {[%emt 0:00:00] [#]} Re8 $146 {[%emt 0:11:09]} ({Predecessor:} 11... a5 12. c4 Nc5 13. Nxg6 hxg6 14. g5 Nh5 15. cxd5 Qxg5 16. dxc6 bxc6 17. Qg4 Qe7 {1-0 (68) Grischuk,A (2777)-Kobalia,M (2614) Chess.com INT 2020}) 12. Nxg6 {[%emt 0:00:00]} hxg6 {[%emt 0:00:30]} 13. c4 {[%emt 0:00:00]} Nc5 {[%emt 0:00:30]} 14. cxd5 {[%emt 0:00:00]} cxd5 {[%emt 0:00:30]} 15. Nb3 {[%emt 0:00:00]} Ne6 {[%emt 0:00:30]} 16. h4 {[%emt 0:00:00]} Bc7 {[%emt 0:00:30]} 17. g5 {[%emt 0:00:00] Prevents e4.} Nh5 {[%emt 0:35:47]} 18. Rd1 {[%emt 0:00:00]} Qd6 {[%emt 0:00:47]} (18... a5 {feels hotter.} 19. Qf3 d4 20. Qxb7 Rb8) 19. Qg4 {[%emt 0:00:00] Inhibits Qb4.} a5 {[%emt 0:04:53]} 20. Nd2 {[%emt 0:00:00]} Rad8 {[%emt 0:02:20]} 21. Nf1 {[%emt 0:00:00]} Qa6 {[%emt 0:03:21]} 22. Bd2 {[%emt 0:02:34]} Nc5 {[%emt 0:01:46]} 23. d4 {[%emt 0:01:55]} (23. Rac1 $11 {keeps the balance.} Bb6 24. d4 exd4 25. exd4 (25. Qxd4 $2 Nd3 $19)) 23... exd4 {[%emt 0:01:48]} 24. Qxd4 {[%emt 0:00:31] [#]} Ne4 {[%emt 0:01:03] Black is more active.} (24... Bb6 $1 $17 {Hoping for ...Ne4.} 25. Qc3 (25. Bxd5 $2 Re4 $19) 25... Ne4) 25. Be1 $11 {[%emt 0:00:33]} Qe6 {[%emt 0:03:16]} 26. Qa4 {[%emt 0:01:45]} Bb6 {[%emt 0:02:28][%cal Bc7b6,Bb6e3,Be3f4][%mdl 32]} (26... Qg4 $2 27. f3 (27. Bxa5 $2 Bxa5 28. Qxa5 Qxh4 $17) 27... Qc8 28. fxe4 $18) 27. Qb5 {[%emt 0:00:27]} d4 {[%emt 0:04:48][%cal Oe4f2] aiming for ...Nxf2!} 28. Bxe4 {[%emt 0:00:58] Threatens to win with Bg2.} (28. Bxa5 $2 Bxa5 29. Qxa5 {[#]} Nxf2 $1 $19 {[%mdl 512]}) 28... dxe3 {[%emt 0:00:38]} 29. Rxd8 $2 {[%emt 0:00:52]} (29. Bxb7 Qg4+ 30. Bg2 exf2+ 31. Bxf2 Nf4) (29. fxe3 $2 Qg4+ 30. Bg2 Nf4 $19) (29. Bf3 $11 {and White stays safe.}) 29... Rxd8 $2 {[%emt 0:00:46]} (29... Qg4+ 30. Bg2 exf2+ 31. Bxf2 Bxf2+ 32. Kxf2) ({Black should try} 29... exf2+ $19 30. Bxf2 Qg4+ 31. Bg2 Bxf2+ 32. Kxf2 Rxd8) 30. Bf3 {[%emt 0:00:49]} (30. Bxb7 Qg4+ 31. Bg2 exf2+ 32. Bxf2 Bxf2+ 33. Kxf2 Qd4+ 34. Ke1 Nf4 $19) 30... Nf4 {[%emt 0:00:22]} 31. fxe3 {[%emt 0:00:52]} (31. Bxa5 $2 exf2+ 32. Kh1 Rd3 $19) 31... Bxe3+ {[%emt 0:00:40]} 32. Kh1 {[%emt 0:00:08]} Nd3 {[%emt 0:01:21] ( -> ...Qh3+)} ({Don't play} 32... Qh3+ 33. Nh2 $16) (32... Bb6 $5 {[%cal Rd8d3]} 33. Nh2 (33. Bxa5 $2 {too greedy.} Rd3 $19) 33... Rd3 $11) 33. Qxb7 $2 {[%emt 0:00:50][%mdl 8192]} (33. Bg2 $11) 33... Qh3+ {[%emt 0:00:29]} 34. Nh2 {[%emt 0:00:10]} Bf4 {[%emt 0:00:05] Weighted Error Value: White=0.37/Black=0.31} 0-1